Cogmind - Beta 13 @@@ ROGUE MODE // 2024.04.01 @ 22:29:34 Player: KoT Result: Destroyed by S-10 Pest with Light Assault Rifle Performance ------------- Evolutions (0) 0 Regions Visited (4) 800 Robots Destroyed (23) 115 Value Destroyed (588) 588 Prototype IDs (0) 0 Alien Tech Used (0) 0 Bonus (-28) -28 TOTAL SCORE: 1475 Bonus ------- Follower Combat Kills 14 Friendly Fire -42 Cogmind --------- Core Integrity 0/250 Matter 138/300 Energy 95/125 System Corruption 6% Temperature Warm (153) Movement Treading (320) Ox2 Location -9/Mines Parts ------- > --- POWER (1) -------- Light Ion Engine > --- PROPULSION (2) --- Light Treads Light Treads > --- UTILITY (2) ------ Huge Storage Unit Structural Scanner > --- WEAPON (2) ------- Heavy Particle Cannon Mining Claw > --- INVENTORY (25) --- Huge Storage Unit Advanced Weight Redist. System Sensor Array Signal Interpreter Targeting Computer Makeshift Transmission Jammer Light Armor Plating Hacking Suite Decoy Drone Bay Heavy EM Pulse Gun Grenade Launcher Rocket Launcher Rocket Launcher Rocket Launcher Rocket Launcher Datajack Datajack Great Maul Makeshift Spear Peak State ------------ > --- POWER ------------ Light Ion Engine > --- PROPULSION ------- Light Treads Light Treads > --- UTILITY ---------- Huge Storage Unit Structural Scanner > --- WEAPON ----------- Heavy Particle Cannon Mining Claw > --- INVENTORY -------- Huge Storage Unit Advanced Weight Redist. System Sensor Array Signal Interpreter Targeting Computer Makeshift Transmission Jammer Light Armor Plating Hacking Suite Decoy Drone Bay Heavy EM Pulse Gun Grenade Launcher Rocket Launcher Rocket Launcher Rocket Launcher Rocket Launcher Datajack Datajack Great Maul Makeshift Spear [Rating: 14] Favorites ----------- Power Light Ion Engine Engine Light Ion Engine Propulsion Light Treads Treads Light Treads Wheel Compact Wheel Utility Huge Storage Unit Device Structural Scanner Storage Huge Storage Unit Weapon Rocket Launcher Energy Gun Heavy EM Pulse Gun Energy Cannon Heavy Particle Cannon Ballistic Gun Assault Rifle Launcher Rocket Launcher Slashing Weapon Mining Claw Special Melee Weapon Datajack Build | -11 -10 -10 -10 -9 ------- Run | Yrd Mat Min Exi Min Slots Evolved . | . . . . . Power . | . . . . . Propulsion . | . . . . . Utility . | . . . . . Weapon . | . . . . . Parts Attached 31 | 6 8 8 7 2 Power 4 | 1 2 . 1 . Engine 4 | 1 2 . 1 . Core . | . . . . . Reactor . | . . . . . Propulsion 7 | 2 . 3 2 . Treads 4 | 2 . . 2 . Leg . | . . . . . Wheel 3 | . . 3 . . Hover . | . . . . . Flight . | . . . . . Utility 5 | 1 4 . . . Device 3 | . 3 . . . Storage 2 | 1 1 . . . Processor . | . . . . . Hackware . | . . . . . Protection . | . . . . . Artifact . | . . . . . Weapon 15 | 2 2 5 4 2 Energy Gun 2 | . . 2 . . Energy Cannon 1 | . . . . 1 Ballistic Gun 2 | 2 . . . . Ballistic Cannon . | . . . . . Launcher 4 | . 1 2 . 1 Special Weapon . | . . . . . Impact Weapon . | . . . . . Slashing Weapon 4 | . 1 1 2 . Piercing Weapon . | . . . . . Special Melee Weapon 2 | . . . 2 . Unidentified Prototypes . | . . . . . Parts Lost 12 | . 4 6 2 . Power 2 | . 1 1 . . Propulsion 4 | . . 3 1 . Utility 1 | . 1 . . . Weapon 5 | . 2 2 1 . Highest Loss Streak 4 | . 3 4 1 . To Critical Strikes . | . . . . . Average Slot Usage (%) 87 | . 92 82 87 100 Engine 10 | . 13 8 8 14 Treads 12 | . 28 7 4 28 Wheel 10 | . . 13 16 . Device 13 | . 12 14 14 14 Storage 14 | . 14 14 14 14 Energy Gun 1 | . . 4 . . Ballistic Gun 3 | . 13 . . . Launcher 12 | . 7 16 13 7 Slashing Weapon 4 | . 2 3 7 14 Special Melee Weapon 2 | . . . 7 6 Naked Turns . | . . . . . Heaviest Build 90 | 12 90 90 90 90 Greatest Support 40 | 40 40 40 40 40 Greatest Overweight (x) 28 | . 2 28 5 2 Average Overweight (x) 3 | . 1 3 3 2 Largest Inventory Capacity 25 | 8 25 25 25 25 Average Capacity 24 | 7 23 25 25 25 Most Carried 20 | 4 15 18 20 20 Average Carried 14 | 2 7 15 17 18 Final Capacity 25 | 8 25 25 25 25 Final Carried 20 | 1 15 18 18 20 Class Distribution -------------------- 85% | Mutant 14% | Commander-Mutant Dominant Class ---------------- Mutant | -10/Materials Mutant | -10/Mines Mutant | -10/Exiles Mutant | -9/Mines Resources | -11 -10 -10 -10 -9 ----------- Run | Yrd Mat Min Exi Min Matter Collected 741 | 212 348 163 18 . Remotely . | . . . . . Salvage Created 759 | . 548 145 46 20 Parts 38 | . 27 10 . 1 Haulers Intercepted . | . . . . . Recyclers Shooed 4 | . . 4 . . Parts Field Recycled . | . . . . . Retrieved Matter . | . . . . . Parts Self-Destructed . | . . . . . Prevented . | . . . . . Kills | -11 -10 -10 -10 -9 ------- Run | Yrd Mat Min Exi Min Combat Hostiles Destroyed 15 | . 10 3 1 1 Guns 9 | . 7 2 . . Cannons 1 | . . . . 1 AOE 5 | . 3 1 1 . Classes Destroyed 8 | . 6 1 . 1 Worker 3 | . 2 1 . . Tunneler 1 | . 1 . . . Recycler 1 | . 1 . . . Operator 2 | . 2 . . . Watcher 1 | . 1 . . . Swarmer 1 | . . . . 1 Grunt 11 | . 10 . 1 . Sentry 2 | . . 2 . . Best Kill Streak 5 | . 5 2 1 1 Combat Bots Only 3 | . 3 2 1 1 Max Kills in Single Turn 1 | . 1 1 1 1 Gunslinging . | . . . . . Exploded 1 | . 1 1 1 . Melee . | . . . . . Uniques/NPCs Destroyed 1 | . . 1 . . YI-UF0 (-10/Mines) Combat | -11 -10 -10 -10 -9 -------- Run | Yrd Mat Min Exi Min Hostile Shots Fired 107 | . 58 40 . 9 Missed 24 | . 17 7 . . Damage Taken 1352 | . 602 531 155 64 Core 254 | . 74 103 55 22 Absorbed by Shields . | . . . . . Core Remaining (%) 100 | 100 . . . . Volleys Fired 77 | . 49 21 2 5 Largest 2 | . 2 1 2 1 Hottest 75 | . 40 45 63 75 Shots Fired 115 | . 85 21 4 5 Gun 94 | . 74 20 . . Cannon 5 | . . . . 5 Launcher 16 | . 11 1 4 . Special . | . . . . . Kinetic 74 | . 74 . . . Thermal 5 | . . . . 5 Explosive 16 | . 11 1 4 . Electromagnetic 20 | . . 20 . . Robot Hit Streak 10 | . 10 8 2 1 Robot Miss Streak 3 | . 3 3 1 3 Penetration Max . | . . . . . Secondary Targets 2 | . 2 . . . Max Gunslinging Chain 1 | . 1 . . . Shots Hit Robots 97 | . 56 20 20 1 Core Hits 39 | . 27 6 5 1 Critical Kills . | . . . . . Critical Parts Destroyed . | . . . . . Critical Strikes . | . . . . . Melee Attacks 49 | . 1 4 44 . Impact . | . . . . . Slashing 31 | . 1 4 26 . Piercing . | . . . . . Sneak Attacks 10 | . 1 3 6 . Combat Hostiles 6 | . . . 6 . Follow-up Attacks . | . . . . . Damage Inflicted 1733 | . 1132 341 210 50 Guns 857 | . 647 210 . . Cannons 50 | . . . . 50 Explosions 552 | . 425 12 115 . Melee 274 | . 60 119 95 . Ramming . | . . . . . Kinetic 647 | . 647 . . . Thermal 50 | . . . . 50 Explosive 552 | . 425 12 115 . Electromagnetic 210 | . . 210 . . Impact . | . . . . . Slashing 274 | . 60 119 95 . Piercing . | . . . . . Highest Corruption 6 | . . 1 6 6 Average Corruption 2 | . . 1 3 6 Corruption Purged . | . . . . . Corruption Blocked . | . . . . . Effects 23 | . . 4 15 4 Message Errors 7 | . . 1 6 . Matter Fused 8 | . . 1 6 1 Energy Discharges 4 | . . 2 1 1 Data Loss (minor) 2 | . . . 1 1 Misfires 1 | . . . 1 . Alerts 1 | . . . . 1 Overload Shots . | . . . . . Overflow Damage 56 | . 37 10 9 . Projectiles . | . . . . . Explosions 16 | . 7 . 9 . Melee 40 | . 30 10 . . Knockbacks . | . . . . . Impact . | . . . . . Kinetic . | . . . . . Secondary . | . . . . . Self-Inflicted Damage 91 | . 43 . 48 . Shots 3 | . 2 . 1 . Rammed 1 | . . 1 . . Targets Rammed 1 | . . 1 . . Kicked . | . . . . . Crushed . | . . . . . Highest Temperature 153 | . 20 148 . 153 Average Temperature 57 | . 6 68 . 85 Received Heat Transfer 495 | . 351 144 . . Siege Activations . | . . . . . Robots Corrupted . | . . . . . Combat Hostiles . | . . . . . Parts Fried 1 | . . 1 . . Impact Corruptions . | . . . . . Robots Melted . | . . . . . Combat Hostiles . | . . . . . Parts Melted . | . . . . . Heat Transferred 74 | . . . . 74 Parts Sabotaged . | . . . . . Parts Stolen . | . . . . . Parts Stripped . | . . . . . Power Chain Reactions . | . . . . . Alert | -11 -10 -10 -10 -9 ------- Run | Yrd Mat Min Exi Min Peak Influence 200 | . 200 38 . 66 Initial 18 | . . 18 . . Average 39 | . 89 6 . 2 Maximum Alert Level 1 | . 1 . . . Low Security (%) 98 | 100 95 100 . 100 Level 1 1 | . 4 . . . Level 2 . | . . . . . Level 3 . | . . . . . Level 4 . | . . . . . Level 5 . | . . . . . High Security . | . . . . . Max Security . | . . . . . Squads Dispatched 3 | . 2 1 . . Investigation 1 | . . 1 . . Extermination . | . . . . . Reinforcement 2 | . 2 . . . Assault . | . . . . . Garrison . | . . . . . Intercept . | . . . . . Searches Triggered . | . . . . . Construction Impeded . | . . . . . Haulers Reinforced . | . . . . . Active Scanning Responses . | . . . . . Cargo Convoy Interrupts . | . . . . . Stealth | -11 -10 -10 -10 -9 --------- Run | Yrd Mat Min Exi Min Distress Signals 2 | . 2 . . . Communications Jammed . | . . . . . Distress Signals . | . . . . . Times Spotted 24 | . 17 3 . 4 Peak Tracking Total 4 | . 4 2 . 4 Tactical Retreats . | . . . . . Traps | -11 -10 -10 -10 -9 ------- Run | Yrd Mat Min Exi Min Traps Triggered . | . . . . . Indirectly . | . . . . . Trap Hack Attempts . | . . . . . Triggered . | . . . . . Disarmed . | . . . . . Reprogrammed . | . . . . . Reused . | . . . . . Traps Extracted . | . . . . . Installed . | . . . . . Triggered . | . . . . . Machines | -11 -10 -10 -10 -9 ---------- Run | Yrd Mat Min Exi Min Machines Disabled 2 | . 1 1 . . Max in Single Turn 1 | . 1 1 . . Machines Repaired . | . . . . . Machines Dismantled . | . . . . . Machines Sabotaged . | . . . . . Overloaded Fab Kills . | . . . . . Hacking | -11 -10 -10 -10 -9 --------- Run | Yrd Mat Min Exi Min Machines Accessed 6 | . 2 1 2 1 Terminals 2 | . 2 . . . Fabricators . | . . . . . Repair Stations . | . . . . . Recycling Units . | . . . . . Scanalyzers . | . . . . . Garrison Access . | . . . . . Total Hacks 13 | . 4 1 7 1 Successful 12 | . 3 1 7 1 Failed 1 | . 1 . . . Catastrophic . | . . . . . Database Lockouts . | . . . . . Manual 1 | . . . 1 . Terminals 4 | . 4 . . . Fabricators . | . . . . . Repair Stations . | . . . . . Recycling Units . | . . . . . Scanalyzers . | . . . . . Garrison Access . | . . . . . Terminal Hacks 12 | . 3 1 7 1 Record 7 | . . . 7 . Open Door 2 | . . 1 . 1 Locate Traps 1 | . 1 . . . Maintenance Status 1 | . 1 . . . Hauler Manifests 1 | . 1 . . . Fabricator Hacks . | . . . . . Repair Station Hacks . | . . . . . Recycling Unit Hacks . | . . . . . Scanalyzer . | . . . . . Garrison Access Hacks . | . . . . . Unauthorized Hacks . | . . . . . Terminals . | . . . . . Fabricators . | . . . . . Repair Stations . | . . . . . Recycling Units . | . . . . . Scanalyzers . | . . . . . Garrison Access . | . . . . . Data Cores Recovered . | . . . . . Used . | . . . . . Hacking Detections 1 | . 1 . . . Full Trace Events . | . . . . . Feedback Events . | . . . . . Feedback Blocked . | . . . . . Robot Schematics Acquired . | . . . . . Robots Built . | . . . . . Authchips . | . . . . . Time . | . . . . . Total Robot Build Rating . | . . . . . Part Schematics Acquired . | . . . . . Parts Built . | . . . . . Authchips . | . . . . . Time . | . . . . . Total Part Build Rating . | . . . . . Parts Repaired . | . . . . . Time . | . . . . . Parts Recycled . | . . . . . Recycled Matter . | . . . . . Retrieved Matter . | . . . . . Retrieved Components . | . . . . . Parts Scanalyzed . | . . . . . Part Schematics Acquired . | . . . . . Parts Damaged . | . . . . . Bothacking | -11 -10 -10 -10 -9 ------------ Run | Yrd Mat Min Exi Min Used RIF Installer . | . . . . . Robots Hacked . | . . . . . Non-combat . | . . . . . Combat . | . . . . . Robot Hacks Applied . | . . . . . Relay Couplers Released . | . . . . . Fabnet Peak Effective % . | . . . . . Robots Rewired 2 | . . . 2 . Allies Hacked . | . . . . . Hacks Repelled . | . . . . . Allies | -11 -10 -10 -10 -9 -------- Run | Yrd Mat Min Exi Min Total Allies 5 | . . 3 2 . Largest Group 5 | . . 3 5 1 Highest-Rated Group 82 | . . 40 82 8 Highest-Rated Ally 21 | . . 16 21 8 Total Orders . | . . . . . Ally Attacks 4 | . . . . 4 Total Damage 33 | . . . . 33 Kills 2 | . . . . 2 Allies Corrupted . | . . . . . Allies Melted . | . . . . . Intel | -11 -10 -10 -10 -9 ------- Run | Yrd Mat Min Exi Min Robot Analysis Total . | . . . . . Derelict Logs Recovered 2 | . . 1 . 1 Drone Launches . | . . . . . Drone Recoveries . | . . . . . Exploration | -11 -10 -10 -10 -9 ------------- Run | Yrd Mat Min Exi Min Turns Passed 4146 | 56 1095 1419 1435 141 Spaces Moved 1896 | 34 316 714 792 40 Core 14 | 9 . 5 . . Treads 555 | 25 316 104 70 40 Legs . | . . . . . Wheels 1327 | . . 605 722 . Hover . | . . . . . Flight . | . . . . . Fastest Speed 50 | 50 160 135 135 320 Average Speed 199 | 130 292 188 168 320 Slowest Speed 1450 | 160 320 1450 320 320 Overloaded Moves . | . . . . . Propulsion Burnouts . | . . . . . Robots Hopped . | . . . . . Cave-ins Triggered 2 | . . . 2 . Exploration Rate (%) 52 | 3 62 95 93 9 Regions Visited 4 Branch Regions 3 Pre-discovered Areas 2 | . . . 1 1 Known Exits Taken . | . . . . . Unknown Exits Taken 4 | 1 1 1 1 . Scrap Searched 1 | . . 1 . . Spaces Dug 23 | . 7 . 16 . Terrain Destroyed 102 | . 56 6 37 3 Melee 16 | . . . 16 . Projectile 3 | . . . . 3 AOE 83 | . 56 6 21 . Terrain Rammed . | . . . . . Walls Destroyed . | . . . . . Machines Disabled . | . . . . . Actions | -11 -10 -10 -10 -9 --------- Run | Yrd Mat Min Exi Min Total 2099 | 46 401 754 850 48 Wait 3 | . 3 . . . Move 1891 | 33 315 713 790 40 Hop . | . . . . . Pick Up 41 | 7 22 7 4 1 Fast Attach . | . . . . . Attach 20 | 6 5 5 4 . Detach 1 | . . . 1 . Swap 11 | . 3 3 3 2 Drop 4 | . 3 . 1 . Fire 77 | . 49 21 2 5 Melee 49 | . 1 4 44 . Ram 1 | . . 1 . . Kick . | . . . . . Crush . | . . . . . Escape Stasis 1 | . . . 1 . Rewire . | . . . . . Trap . | . . . . . Miscellaneous . | . . . . . Route ------- -11/Scrapyard -10/Materials (discovered 3 exits: [*Mat x2] / *Min) -10/Mines (discovered 3 exits: [*Mat x2] / *Exi) -10/Exiles (discovered 2 exits: *Min x2) -9/Mines History --------- Turn | Location | Event 30 | -11/Scrapyard | Discovered new exit (range 15) 57 | -11/Scrapyard | Entered Materials 314 | -10/Materials | Build established: Mutant 331 | -10/Materials | Discovered new exit (range 11) 616 | -10/Materials | Lost 3 parts (1p2w) 711 | -10/Materials | Discovered new exit (range 9) 998 | -10/Materials | Discovered new exit (range 14) 1152 | -10/Materials | Entered Mines 1251 | -10/Mines | Discovered new exit (range 5) 1462 | -10/Mines | Discovered new exit (range 15) 1515 | -10/Mines | Core integrity fell below 50% 1551 | -10/Mines | Lost 4 parts (2n2w) 1805 | -10/Mines | Learned Materials terminal intel 1882 | -10/Mines | A weapon hastily lodged in a ceiling crevice suddenly fell to the ground 1975 | -10/Mines | Destroyed YI-UF0 2313 | -10/Mines | Assisted by bots powering up and referring to "LRC-V3" 2356 | -10/Mines | Met a Derelict shopkeep closing up shop 2566 | -10/Mines | Deemed a non-threat by the Exiles lab entrance 2566 | -10/Mines | Discovered new exit (range 5) 2571 | -10/Mines | Entered Exiles 2571 | -10/Exiles | Found Exiles lab destroyed 2571 | -10/Exiles | Accompanied by 3 allies 2593 | -10/Exiles | Discovered new exit (range 14) 2823 | -10/Exiles | Learned location of Zion (-7) 2936 | -10/Exiles | Discovered new exit (range 14) 3071 | -10/Exiles | Build established: Commander-Mutant 3091 | -10/Exiles | Core integrity fell below 20% 3363 | -10/Exiles | Crushed by falling debris 3372 | -10/Exiles | Crushed by falling debris 3660 | -10/Exiles | Build established: Mutant 4006 | -10/Exiles | Entered Mines 4006 | -9/Mines | Accompanied by 1 ally 4063 | -9/Mines | Found the Drone Emporium 4080 | -9/Mines | Met a Derelict bent on vengeance 4085 | -9/Mines | Found Prototype Device 4147 | -9/Mines | Destroyed by S-10 Pest with Light Assault Rifle Last Messages --------------- 04029_ Acquired derelict log, extracted data. World map confirmed: -7/Zion. 04053_ System corrupted: Energy discharge (-28). 04061_ Connecting with SHOP.Sys... 04061_ Current location identified: Mines 04062_ Connecting with SHOP.Sys... >>Open Door Sealed Doors opened. 04063_ I3-SGP(g): "Well that was anticlimactic. Heard you outside and thought you were from the Merchants Guild. I haven't even officially opened my Drone Emporium yet but am totally ready to tell them where they can shove that C&D." 04065_ I3-SGP(g): "I'm a fan of the free market. Free drones for all! No strings attached!" 04085_ Acquired Prototype Device. 04099_ System corrupted: Component data lost. 04134_ System corrupted: Matter fused (-9). 04140_ S-10 Pest destroyed. Map ----- +----------------------------------------------------+ | ??????????????????????????????? | | ????????????????????######????? | | ??????????????#############???? | | ??????????????######## ###???? | | ??????????????## ##???? | | ??????????????## !! ###??? | | ??????????????## !! ####?? | | ??????????????## !! ####? | | ??????????????## !! ###? | | ??????????????## ## ##? | | ??????????????########### ##? | | ??????????????############ ##? | | ??????????????????######## ##? | | ?????????????????######### ##? | | ??????????????###### ### ##? | | ?????????????###### ##? | | ?????????????###""## ##? | | ?????????????##" # #####? | | ?????????????##" ####? | | ?????????????##" ###?? | | ?????????????##" #X ###?? | | ?????????????###""## ##?? | | ?????????????######### ##?? | | ??????????????######### ###?? | | ????????????????????#####[###?? | | ????????????????????###;%@##??? | | ????????????????????##*s=g##??? | | ????????????????????##%;####??? | | ????????????????????## #####??? | | ????????????????????## ##?????? | | ????????????????????## ???????? | | ???????????????????? ???????? | | ??????????????????????????????? | | ??????????????????????????????? | | ??????????????????????????????? | | ??????????????????????????????? | | ??????????????????????????????? | | ??????????????????????????????? | | ??????????????????????????????? | | ??????????????????????????????? | | ??????????????????????????????? | | ??????????????????????????????? | | ??????????????????????????????? | | ??????????????????????????????? | | ??????????????????????????????? | | ??????????????????????????????? | | ??????????????????????????????? | | ??????????????????????????????? | | ??????????????????????????????? | | ??????????????????????????????? | +----------------------------------------------------+ Best States ------------- Heat Dissipation 39 Energy Generation 10 Energy Capacity 250 Matter Stores 300 Matter Capacity 300 Sight Range 16 Terrain Scan Density 10 Evasion (%) 50 Recoil Reduction 2 Item Schematics ----------------- None Robot Schematics ------------------ None Fabricated ------------ Nothing Alien Tech Used ----------------- None Achievements -------------- None Challenges ------------ None Game ------ Seed AssaultLightpackShielding Manual? 0 Play Time 00:26:50 Cumulative 10.2 hours Start 2024.04.01 @ 22:03:55 End 2024.04.01 @ 22:29:34 Sessions 1 Manual Loads 0 Difficulty Rogue Special Mode None Game No. 17 Rogue 17 Adventurer 0 Explorer 0 Win Type - Total 0 Types 0/0/0/0/0/0/0/0/0 Lore% 17 Gallery% 12 Achievement% 14 Wizard Run 0 Options --------- Layout 1 ASCII 0 Keyboard 0 Movement Mouse Keybinds 0 Fullscreen 1 Font 24/Smallcaps Map View 50x35 Zoom Use 0% Tactical HUD 1 Map Filters NONE Filters NONE Steam 0 RUN: 96fce3f6-a1a8-4608-8c33-34f9857c5297